[Event "44th Chess Olympiad Open 2022"]
[Site "Chennai"]
[Date "2022.08.01"]
[Round "4.10"]
[White "Hansen, Eric"]
[Black "Maghsoodloo, Parham"]
[Result "1/2-1/2"]
[WhiteElo "2606"]
[BlackElo "2701"]
[Annotator "TA"]
[PlyCount "62"]
[EventDate "2022.??.??"]
[TimeControl "60"]

{[%evp 21,62,14,16,0,9,9,0,20,23,32,25,25,2,9,26,6,6,3,7,10,9,-14,-12,-9,-12,
-11,0,0,0,0,0,0,0,0,0,0,0,0,0,0,0,0,8]} 1. e4 {[%emt 0:00:05]} e5 {[%emt 0:00:
00]} 2. Nf3 {[%emt 0:00:40]} Nc6 {[%emt 0:00:06]} 3. Bb5 {[%emt 0:00:24]} a6 {
[%emt 0:00:07]} 4. Ba4 {[%emt 0:00:25]} Nf6 {[%emt 0:00:07]} 5. O-O {[%emt 0:
00:00]} b5 {[%emt 0:00:05]} 6. Bb3 {[%emt 0:00:05]} Bc5 {[%emt 0:00:05]} 7. c3
{[%emt 0:20:41]} d6 {[%emt 0:00:07]} 8. d4 {[%emt 0:00:06]} Bb6 {[%emt 0:00:05]
} 9. Be3 {[%emt 0:05:47]} O-O {[%emt 0:00:19]} 10. Nbd2 {[%emt 0:02:32]} h6 {
[%emt 0:04:03]} 11. h3 {[%emt 0:02:02]} Re8 {[%emt 0:01:03]} 12. Re1 {[%emt 0:
00:00] C78: Ruy Lopez: Archangelsk and Möller Defences.} exd4 {[%emt 0:01:16]}
13. cxd4 {[%emt 0:00:09][%cal Ye4e5]} Na5 {[%emt 0:00:05]} (13... Nxe4 $2 14.
Nxe4 (14. Bd5 Nxd2 15. Nxd2 Qd7 $16) 14... Rxe4 15. Bd5 Rxe3 16. Rxe3 $18 (16.
fxe3 Qe8 $16)) 14. Bc2 {[%emt 0:00:27]} Bb7 {[%emt 0:00:04][%cal Rf6e4]} 15. b4
{[%emt 0:23:24]} Nc4 {[%emt 0:00:09]} 16. Nxc4 {[%emt 0:00:06]} bxc4 {[%emt 0:
00:00]} 17. d5 {[%emt 0:00:19]} c6 {[%emt 0:00:05][%cal Rc6d5]} 18. dxc6 {
[%emt 0:08:52]} (18. Ba4 {is more complex.} Rc8 19. Bxb6 Qxb6 20. Nd4) 18...
Bxc6 {[%emt 0:00:05] The position is equal.} 19. Bxb6 {[%emt 0:00:24]} Qxb6 {
[%emt 0:00:06]} 20. Qxd6 {[%emt 0:01:23]} Rad8 {[%emt 0:00:04] [#]} 21. Qc5
$146 {[%emt 0:16:19]} (21. Qf4 {keeps more tension.} Qxb4 22. e5 Bxf3 23. Qxf3
Nd7 24. Qe4) ({Predecessor:} 21. Qf4 Qxb4 22. e5 Bxf3 23. Qxf3 Qa5 24. Qf5 Rd5
25. Rab1 Rdxe5 26. Rxe5 Qxe5 27. Qxe5 Rxe5 {½-½ (43) Vachier Lagrave,M (2757)
-Svidler,P (2732) Germany 2015}) 21... Qxc5 {[%emt 0:04:41]} 22. bxc5 {[%emt 0:
00:00]} Nxe4 {[%emt 0:00:05]} 23. Bxe4 {[%emt 0:00:16]} Rxe4 {[%emt 0:04:43]}
24. Rxe4 {[%emt 0:00:13]} ({Don't play} 24. Ne5 Rxe1+ 25. Rxe1 Re8 $17) 24...
Bxe4 $11 {[%emt 0:00:03] Endgame KRB-KRN} 25. Rc1 {[%emt 0:00:10]} Bd3 {
[%emt 0:00:09]} 26. Ne5 {[%emt 0:00:16]} Rd5 {[%emt 0:02:34][%csl Yc5,Ye5]} 27.
Nxd3 {[%emt 0:00:06]} cxd3 {[%emt 0:00:03]} 28. c6 {[%emt 0:00:06] [#]
Strongly threatening c7.} d2 {[%emt 0:00:04]} 29. Rd1 {[%emt 0:00:03]} Rc5 {
[%emt 0:00:09] ...Rc1 is the strong threat.} 30. Rxd2 {[%emt 0:00:07]} Rc1+ {
[%emt 0:00:19]} 31. Kh2 {[%emt 0:00:07]} Rxc6 {[%emt 0:00:02] A balanced but
interesting game. Weighted Error Value: White=0.03 (flawless) /Black=0.01 
(flawless)} 1/2-1/2

[Event "44th Chess Olympiad Open 2022"]
[Site "Chennai"]
[Date "2022.08.01"]
[Round "4.10"]
[White "Daneshvar, Bardiya"]
[Black "Samsonkin, Artiom"]
[Result "1/2-1/2"]
[WhiteElo "2490"]
[BlackElo "2434"]
[Annotator "RC"]
[PlyCount "88"]
[EventDate "2022.??.??"]
[TimeControl "60"]

1. Nf3 {[%emt 0:00:03]} Nf6 {[%emt 0:00:09]} 2. c4 {[%emt 0:00:05]} e6 {
[%emt 0:00:42]} 3. g3 {[%emt 0:00:05]} d5 {[%emt 0:00:48]} 4. Bg2 {[%emt 0:00:
00]} d4 {[%emt 0:00:39]} 5. O-O {[%emt 0:00:34]} c5 {[%emt 0:00:13]} 6. e3 {
[%emt 0:00:24]} Nc6 {[%emt 0:01:09]} 7. exd4 {[%emt 0:00:20]} cxd4 {[%emt 0:00:
00]} 8. d3 {[%emt 0:00:06]} h6 {[%emt 0:00:46]} 9. Bf4 {[%emt 0:00:55]} Bd6 {
[%emt 0:01:44]} 10. Bxd6 {[%emt 0:00:42]} Qxd6 {[%emt 0:00:10]} 11. Nbd2 {
[%emt 0:01:16]} O-O {[%emt 0:02:19]} 12. a3 {[%emt 0:02:26]} a5 {[%emt 0:01:25]
} 13. Rc1 {[%emt 0:05:34]} Nd7 {[%emt 0:03:04]} 14. Qc2 {[%emt 0:07:56]} Nc5 {
[%emt 0:28:37]} 15. Nb3 {[%emt 0:09:22]} Nxb3 {[%emt 0:10:23]} 16. Qxb3 {
[%emt 0:00:10]} a4 {[%emt 0:00:04]} 17. Qc2 {[%emt 0:05:22]} e5 {[%emt 0:07:34]
} 18. Rfe1 {[%emt 0:07:55]} Bf5 {[%emt 0:07:05]} 19. c5 {[%emt 0:04:35]} Qc7 {
[%emt 0:02:53]} 20. Nd2 {[%emt 0:01:31]} Ra5 {[%emt 0:06:48]} 21. Ne4 {[%emt 0:
00:00]} Bxe4 {[%emt 0:00:06]} 22. Bxe4 {[%emt 0:00:16]} Nb8 {[%emt 0:07:51]}
23. Qd2 {[%emt 0:12:58]} Rxc5 {[%emt 0:00:29]} 24. Rxc5 {[%emt 0:00:28]} Qxc5 {
[%emt 0:00:05]} 25. Bxb7 {[%emt 0:00:21]} Nd7 {[%emt 0:00:16]} 26. Rc1 {
[%emt 0:02:58]} Qb6 {[%emt 0:00:25]} 27. Qb4 {[%emt 0:02:37]} Rb8 {[%emt 0:00:
00]} 28. Qxb6 {[%emt 0:08:49]} Nxb6 {[%emt 0:00:02]} 29. Bc6 {[%emt 0:07:35]}
Kf8 {[%emt 0:09:17]} 30. Bb5 {[%emt 0:01:43]} Ke7 {[%emt 0:01:08]} 31. Rc7+ {
[%emt 0:00:43]} Kd6 {[%emt 0:01:22]} 32. Rxf7 {[%emt 0:03:54]} Nd5 {[%emt 0:00:
00]} 33. Bxa4 {[%emt 0:01:16]} Rxb2 {[%emt 0:00:04]} 34. Rxg7 {[%emt 0:01:41]}
Nc3 {[%emt 0:00:13]} 35. Be8 {[%emt 0:02:34]} e4 {[%emt 0:01:12]} 36. dxe4 {
[%emt 0:02:30]} Nxe4 {[%emt 0:00:06]} 37. Rd7+ {[%emt 0:01:19]} Kc5 {[%emt 0:
00:00]} 38. Bf7 {[%emt 0:00:37]} Nxf2 {[%emt 0:01:42]} 39. Rd5+ {[%emt 0:00:09]
} Kc6 {[%emt 0:00:15]} 40. Rxd4 {[%emt 0:00:09]} Nh3+ {[%emt 0:00:17]} 41. Kh1
{[%emt 0:31:08]} Nf2+ {[%emt 0:03:09]} 42. Kg2 {[%emt 0:00:00]} Ne4+ {[%emt 0:
00:00]} 43. Kg1 {[%emt 0:00:00]} Rb1+ {[%emt 0:00:12]} 44. Kg2 {[%emt 0:00:00]}
Rb2+ {[%emt 0:00:06]} 1/2-1/2

[Event "44th Chess Olympiad Open 2022"]
[Site "Chennai"]
[Date "2022.08.01"]
[Round "4.10"]
[White "Preotu, Razvan"]
[Black "Idani, Pouya"]
[Result "1-0"]
[WhiteElo "2445"]
[BlackElo "2641"]
[Annotator "TA"]
[PlyCount "117"]
[EventDate "2022.??.??"]
[TimeControl "60"]

{[%evp 10,117,12,6,24,15,40,0,7,0,23,19,46,41,40,20,47,56,49,56,55,52,62,62,72,
62,71,58,83,88,89,33,36,-24,10,-82,-38,-36,-54,-210,-227,-281,-262,-276,-108,
-106,97,98,94,97,100,88,76,93,77,83,104,115,138,148,253,239,280,262,275,275,
288,288,288,287,283,283,270,182,157,170,172,182,190,145,255,99,135,135,135,52,
120,22,22,22,23,22,22,31,4779,4779,4133,4133,2577,2406,1391,260,260,256,4793,
4786,2116,1597,1051,967]} 1. e4 {[%emt 0:00:05]} c6 {[%emt 0:00:04]} 2. Nc3 {
[%emt 0:00:13]} d5 {[%emt 0:00:05]} 3. Nf3 {[%emt 0:00:05]} Bg4 {[%emt 0:00:05]
} 4. h3 {[%emt 0:00:16]} Bxf3 {[%emt 0:00:05]} 5. Qxf3 {[%emt 0:00:08]} e6 {
[%emt 0:00:03]} 6. Be2 {[%emt 0:01:06]} d4 {[%emt 0:00:07] B11: Caro-Kann: Two
Knights Variation.} 7. Nb1 {[%emt 0:00:21]} Bd6 {[%emt 0:00:05] 7...Ne7 is the
modern continuation.} 8. d3 {[%emt 0:00:28]} Ne7 {[%emt 0:00:07] The position
is equal.} 9. Nd2 {[%emt 0:01:26] [#]} Bc7 $146 {[%emt 0:01:31]} ({Predecessor:
} 9... Nd7 10. O-O O-O 11. g3 c5 12. Qg2 Nc6 13. f4 Bc7 14. e5 Nb4 15. Bd1 b5 {
1-0 (27) Korostenski,F (1709)-Willmann,B (1843) LSS email 2012}) 10. Nb3 {
[%emt 0:01:08]} Ng6 {[%emt 0:03:22]} 11. c3 {[%emt 0:13:03]} h5 {[%emt 0:04:20]
And now ...Nh4 would win.} 12. g3 {[%emt 0:03:16] Prevents Nh4.} (12. Nxd4 $2
Nh4 13. Qxh5 Nxg2+ 14. Kf1 Rxh5 $19) 12... Ne5 {[%emt 0:06:16]} 13. Qg2 {
[%emt 0:00:13]} dxc3 {[%emt 0:00:05]} 14. d4 {[%emt 0:00:15]} cxb2 {[%emt 0:00:
00]} 15. Bxb2 {[%emt 0:00:07]} Ba5+ {[%emt 0:07:01]} 16. Kf1 $1 {[%emt 0:01:31]
} (16. Nxa5 Qxa5+ 17. Kd1 (17. Kf1 Qd2 $17) 17... Qb4 $17) 16... Ng6 {[%emt 0:
00:00]} 17. Rd1 {[%emt 0:10:50]} Nd7 {[%emt 0:13:11]} 18. d5 {[%emt 0:05:30]}
Bb6 {[%emt 0:09:26]} 19. Bxg7 {[%emt 0:24:55]} Rg8 {[%emt 0:00:11]} 20. dxe6 {
[%emt 0:08:57]} (20. Bb2 $16) 20... fxe6 $14 {[%emt 0:00:14]} 21. Bc3 {[%emt 0:
00:00]} (21. Bh6 $14) 21... h4 {[%emt 0:05:26]} (21... Qe7 $5 {[%cal Re8c8]})
22. Nd4 {[%emt 0:03:40]} (22. Rg1 $1 $11 {remains equal.}) 22... Qf6 {[%emt 0:
00:00]} 23. gxh4 {[%emt 0:12:00]} (23. Nb5 Nde5 24. Nd6+ Ke7 $11) 23... O-O-O
$1 {[%emt 0:03:24]} 24. Qg5 {[%emt 0:00:40]} ({Better is} 24. Nxc6 $1 $15 Qxc3
25. Nxd8) 24... Qf7 $1 $19 {[%emt 0:00:35] Black has strong compensation.} (
24... Nxh4 25. Qxf6 Nxf6 26. Nxe6 Rxd1+ 27. Bxd1 Nxe4 28. Be1 $11) 25. Bh5 {
[%emt 0:00:50]} Nf6 {[%emt 0:04:40]} (25... e5 26. Nf5 Qc4+ 27. Kg1 $19) 26.
Bf3 {[%emt 0:04:02]} e5 $2 {[%emt 0:04:53]} (26... Rd7 $19 27. h5 Ne7) 27. Qf5+
$17 {[%emt 0:00:18]} Kb8 $2 {[%emt 0:01:43]} (27... Rd7 $1 $17 {stays on
course.} 28. Ne2 Nxh4 29. Rxd7 Qxd7 30. Qxd7+ (30. Qxf6 Bd8 $17) 30... Kxd7 31.
Bg4+ (31. Bxe5 Nxf3 32. Bxf6 Nd2+ 33. Ke1 Nxe4 $17) 31... Nxg4 32. hxg4 Rxg4
33. Bxe5 Rxe4) 28. Ne6 $16 {[%emt 0:00:36]} Rde8 {[%emt 0:08:58]} 29. h5 $1 {
[%emt 0:00:12] 0x0.0005eb8d7aacdp-1022s more active pieces.} (29. Bxe5+ Nxe5
30. Qxe5+ Ka8 $17) 29... Qxe6 {[%emt 0:04:35]} 30. Qxe6 {[%emt 0:00:07]} (30.
hxg6 $2 Qc4+ 31. Kg2 Qxc3 $17) 30... Rxe6 {[%emt 0:00:03]} 31. hxg6 {[%emt 0:
00:06]} Rxg6 {[%emt 0:00:03]} 32. h4 {[%emt 0:00:41][%cal Yh3h4,Yh4h5,Yh5h6]}
Kc7 {[%emt 0:02:00]} 33. h5 {[%emt 0:00:13]} Rg8 {[%emt 0:00:00]} 34. Ke2 {
[%emt 0:00:21]} Rh8 {[%emt 0:01:54]} (34... Bd4 $16 {might work better.}) 35.
Rdg1 $18 {[%emt 0:00:17]} Bd4 {[%emt 0:03:35]} 36. Rg7+ {[%emt 0:00:00]} Kd6 {
[%emt 0:00:35]} 37. Bd2 {[%emt 0:01:33]} b5 {[%emt 0:01:52]} 38. h6 {[%emt 0:
01:35]} Ne8 {[%emt 0:00:55]} 39. Rg2 {[%emt 0:04:18]} Nf6 {[%emt 0:00:00]} 40.
Rg6 {[%emt 0:00:43]} c5 {[%emt 0:01:36]} 41. Bg5 {[%emt 0:02:26]} Nh7 {[%emt 0:
00:13]} 42. Rxe6+ {[%emt 0:00:19]} Kxe6 {[%emt 0:00:05]} 43. Bg4+ {[%emt 0:00:
06]} Kf7 {[%emt 0:01:00]} 44. Bc1 {[%emt 0:02:02]} Nf8 {[%emt 0:00:00]} (44...
Nf6 $16 {was necessary.} 45. Bf5 Ng8) 45. Bf5 $2 {[%emt 0:12:02]} (45. Rg1 $18
{is more deadly.}) 45... c4 {[%emt 0:03:06]} 46. Rg1 $1 {[%emt 0:00:00]
Strongly threatening Rg7+.} Rg8 {[%emt 0:00:10] Against Rg7+} 47. Rg3 {[%emt 0:
00:38]} ({White should play} 47. Bg4 $16 {Threatens to win with Bh5+.} Kf6 48.
Rg3) 47... b4 {[%emt 0:04:22] [#]} ({Black should try} 47... Rxg3 $14 48. fxg3
b4) 48. Bd2 {[%emt 0:00:04]} (48. h7 Nxh7 49. Rxg8 (49. Bxh7 Rxg3 50. fxg3 b3
$11) 49... Kxg8 $14) (48. Bg4 $1 $16 {[%cal Rg4h5] Bh5+ is the strong threat.}
Ke7 49. Bh5 Rxg3 50. fxg3) 48... a5 $11 {[%emt 0:04:08]} 49. h7 {[%emt 0:00:12]
} Nxh7 {[%emt 0:01:59]} 50. Bxh7 {[%emt 0:00:18] This bishop pair is nice.}
Rxg3 {[%emt 0:00:05]} 51. fxg3 {[%emt 0:00:06] Black must now prevent Kd1.} b3
$2 {[%emt 0:04:54]} (51... c3 $14) 52. axb3 $18 {[%emt 0:00:11]} cxb3 {[%emt 0:
00:04]} 53. Kd3 {[%emt 0:01:50]} a4 {[%emt 0:00:00]} 54. Bb4 {[%emt 0:00:18]}
Bb2 {[%emt 0:00:36]} 55. Bc3 $2 {[%emt 0:01:35]} (55. Kd2 Bd4 56. Bf5) 55...
Bc1 {[%emt 0:00:55]} 56. Bf5 {[%emt 0:00:52]} ({Inferior is} 56. Bxe5 a3 57.
Kc3 (57. Bf5 $2 a2 $19) 57... Bb2+ 58. Kxb3 Bxe5 $11) 56... Kf6 $2 {[%emt 0:07:
10]} (56... a3 57. Bg4 (57. Bxe5 $2 a2 $19) 57... a2) 57. Bd7 {[%emt 0:00:50]
White is clearly winning.} a3 {[%emt 0:00:22] [#]} 58. Ba4 $1 {[%emt 0:00:05]}
b2 {[%emt 0:00:22]} 59. Kc2 {[%emt 0:00:05] Never resign too early! Weighted
Error Value: White=0.32/Black=0.27 (precise)} 1-0

[Event "44th Chess Olympiad Open 2022"]
[Site "Chennai"]
[Date "2022.08.01"]
[Round "4.11"]
[White "Volokitin, Andrei"]
[Black "Gazik, Viktor"]
[Result "0-1"]
[WhiteElo "2674"]
[BlackElo "2544"]
[Annotator "TA"]
[PlyCount "98"]
[EventDate "2022.??.??"]
[TimeControl "60"]

{[%evp 27,98,9,8,8,16,12,16,0,16,35,26,26,12,-13,-8,-42,-41,-41,-34,-33,-37,
-129,-125,-224,-231,-284,-179,-222,-228,-230,-173,-250,-281,-283,-283,-315,
-318,-404,-418,-614,-643,-516,-516,-4651,-4795,-4702,-4639,-2371,-2047,-1934,
-1799,-1360,-1322,-29978,-29979,-29980,-29980,-29981,-29982,-29982,-29983,
-29982,-29983,-29985,-29986,-29993,-29987,-29995,-29996,-29998,-29985,-29995,
76]} 1. e4 {[%emt 0:00:03]} c5 {[%emt 0:00:03]} 2. Nf3 {[%emt 0:00:05]} d6 {
[%emt 0:00:03]} 3. d4 {[%emt 0:00:08]} cxd4 {[%emt 0:00:03]} 4. Nxd4 {[%emt 0:
00:00]} Nf6 {[%emt 0:00:05]} 5. Nc3 {[%emt 0:00:05]} g6 {[%emt 0:00:04]} 6. Be3
{[%emt 0:00:09]} Bg7 {[%emt 0:00:03]} 7. f3 {[%emt 0:00:09]} O-O {[%emt 0:00:
00]} 8. Qd2 {[%emt 0:00:07]} Nc6 {[%emt 0:00:03]} 9. O-O-O {[%emt 0:00:14]} d5
{[%emt 0:00:12]} 10. exd5 {[%emt 0:00:40]} Nxd5 {[%emt 0:00:10]} 11. Nxc6 {
[%emt 0:00:12]} bxc6 {[%emt 0:00:03]} 12. Bd4 {[%emt 0:00:05]} e5 {[%emt 0:00:
00]} 13. Bc5 {[%emt 0:00:08]} Re8 {[%emt 0:00:03] is now debated instead of 13.
..Be6.} 14. Nxd5 {[%emt 0:49:24]} cxd5 {[%emt 0:00:11]} 15. Qxd5 {[%emt 0:00:
00] B76: Sicilian Dragon: Yugoslav Attack, 9 g4 and 9 0-0-0.} Qxd5 {[%emt 0:00:
00]} 16. Rxd5 {[%emt 0:00:08]} Be6 {[%emt 0:00:04]} 17. Rd3 {[%emt 0:06:13]
The position is equal.} Rec8 {[%emt 0:06:42]} 18. Be3 {[%emt 0:03:17] [#]} a5
$5 $146 {[%emt 0:04:12] New and interesting.} ({Predecessor:} 18... Bxa2 19.
Ra3 Be6 20. Ba6 Rc7 21. Rd1 Rb8 22. Ra5 h5 23. Rb5 Rxb5 24. Bxb5 e4 {1-0 (45)
Nevostrujev,V (2461)-Zaitsev,V (2352) Kemerovo 2012}) 19. a4 {[%emt 0:00:00]}
Rab8 {[%emt 0:14:10][%cal Ye5e4]} 20. Rd2 {[%emt 0:00:07]} Rb4 {[%emt 0:15:37]
aiming for ...e4.} 21. b3 {[%emt 0:00:49]} (21. c3 $5 {[%cal Rf1a6]} Rxa4 22.
Kb1 $11) 21... Bxb3 $40 {[%emt 0:19:36] Black has some attack.} 22. Ba6 {
[%emt 0:00:32] [#]} Ba2 $1 {[%emt 0:00:17][%csl Ga2][%cal Rb4b1]} 23. c4 $1 {
[%emt 0:09:16]} Rcb8 {[%emt 0:02:06] Strongly threatening ...Rb1+.} 24. Rxa2 {
[%emt 0:15:12] White is now going downhill.} (24. Rhd1 $15 Rb1+ 25. Kc2 R8b2+
26. Kd3 Rxd1 27. Rxd1) 24... Rb1+ $17 {[%emt 0:00:00] Skewer} 25. Kd2 {[%emt 0:
00:57]} (25. Kc2 $17 Rxh1 26. c5) 25... Rxh1 $19 {[%emt 0:00:02]} 26. Ke2 {
[%emt 0:00:42]} e4 {[%emt 0:12:16]} 27. fxe4 {[%emt 0:00:29]} Rxh2 {[%emt 0:00:
05]} 28. Kf2 {[%emt 0:00:12]} Rh4 {[%emt 0:00:03] Prevents Bf4.} 29. c5 {
[%emt 0:00:43]} (29. Bb5 $142) 29... Rxe4 {[%emt 0:02:23]} 30. c6 {[%emt 0:00:
10]} Be5 {[%emt 0:01:12] Hoping for ...Rb3.} 31. Bb5 {[%emt 0:00:44]} Bc7 {
[%emt 0:02:46]} 32. Rd2 {[%emt 0:00:21]} Rbe8 {[%emt 0:00:47]} 33. Rd7 {
[%emt 0:00:49]} (33. Bh6 $142 R8e5 34. g3) 33... Rxe3 {[%emt 0:00:07]} 34. Rxc7
{[%emt 0:00:03] Endgame KRR-KRB} R3e7 {[%emt 0:00:20]} 35. Rd7 {[%emt 0:01:04]
[#]} (35. Rb7 $142 Kg7 36. Bc4) 35... Rxd7 $1 {[%emt 0:00:13]} 36. cxd7 {
[%emt 0:00:02] KR-KB} Rd8 {[%emt 0:00:06]} 37. Ke3 {[%emt 0:00:03]} Kf8 {
[%emt 0:02:53]} 38. Kd4 {[%emt 0:00:01]} Ke7 {[%emt 0:02:34]} 39. Kc5 {[%emt 0:
00:01]} Rxd7 {[%emt 0:00:27] ...Rd2 is the strong threat.} 40. Bxd7 {[%emt 0:
00:05]} Kxd7 {[%emt 0:00:04] KP-KP. Black mates.} 41. Kb6 {[%emt 0:30:05]} h5 {
[%emt 0:35:26]} 42. Kxa5 {[%emt 0:00:06] K3P-KPP} h4 {[%emt 0:01:03]} 43. Kb6 {
[%emt 0:00:14]} g5 {[%emt 0:00:21][%cal Yg6g5,Yg5g4]} 44. a5 {[%emt 0:01:21] 
[#]} Kc8 $1 {[%emt 0:00:04]} 45. Ka7 {[%emt 0:01:07]} g4 {[%emt 0:00:03]} 46.
a6 {[%emt 0:00:06]} h3 {[%emt 0:00:00]} 47. Ka8 {[%emt 0:00:09]} h2 {[%emt 0:
00:04]} 48. a7 {[%emt 0:00:08]} h1=R {[%emt 0:00:05]} 49. g3 {[%emt 0:00:11] 
[#]} Rh4 $3 {[%emt 0:00:06] Weighted Error Value: White=0.64/Black=0.05 
(flawless) . Loss on time!?} 0-1

[Event "44th Chess Olympiad Open 2022"]
[Site "Chennai"]
[Date "2022.08.01"]
[Round "4.11"]
[White "Shevchenko, Kirill"]
[Black "Repka, Christopher"]
[Result "1/2-1/2"]
[WhiteElo "2654"]
[BlackElo "2516"]
[Annotator "TA"]
[PlyCount "90"]
[EventDate "2022.??.??"]
[TimeControl "60"]

{[%evp 9,90,29,37,30,30,25,32,17,36,41,35,38,25,38,50,45,45,39,37,33,57,45,52,
16,21,23,10,13,20,0,0,0,0,-29,-37,-55,-45,-61,-14,-18,-8,-15,0,-110,-113,-112,
-114,-124,-88,-89,-91,-96,-97,-96,-102,-165,-165,-165,-165,-165,-165,-165,-165,
-165,-165,-172,-164,-164,-164,-164,-164,-165,-164,-164,-164,-162,-162,-161,
-147,-172,-147,-147,-147]} 1. e4 {[%emt 0:00:03]} e5 {[%emt 0:00:05]} 2. Nf3 {
[%emt 0:00:03]} Nc6 {[%emt 0:00:17]} 3. Bb5 {[%emt 0:00:06]} Nge7 {[%emt 0:00:
00]} 4. Nc3 {[%emt 0:05:08]} Ng6 {[%emt 0:00:40]} 5. d4 {[%emt 0:01:54]} Nxd4 {
[%emt 0:00:08]} 6. Nxd4 {[%emt 0:00:17] C60: Ruy Lopez: Unusual Black 3rd
moves and 3...g6.} exd4 {[%emt 0:00:04]} 7. Qxd4 {[%emt 0:00:05][%cal Yh2h4]}
c6 {[%emt 0:00:05]} 8. Bc4 {[%emt 0:11:22] White is slightly better.} b5 {
[%emt 0:00:34]} 9. Be2 {[%emt 0:07:36]} Qb6 {[%emt 0:00:17]} 10. Be3 {[%emt 0:
00:00]} Qxd4 {[%emt 0:07:08]} 11. Bxd4 {[%emt 0:00:02] [#]} b4 $146 {[%emt 0:
00:00]} ({Predecessor:} 11... Nf4 12. Bf3 Ne6 13. Be3 b4 14. Nb1 a5 15. a3 Rb8
16. axb4 Bxb4+ 17. Kd1 O-O {½-½ (43) Arnason,J (2500)-Wedberg,T (2495) Oslo
1984}) 12. Na4 {[%emt 0:04:36]} Nf4 {[%emt 0:00:06]} 13. Bf1 {[%emt 0:05:21]}
Ne6 {[%emt 0:04:10]} 14. Be3 {[%emt 0:03:31]} d5 {[%emt 0:01:32]} 15. exd5 {
[%emt 0:13:13]} cxd5 {[%emt 0:00:06]} 16. Bb5+ {[%emt 0:00:16]} Bd7 {[%emt 0:
00:00]} 17. Bxd7+ {[%emt 0:00:07]} Kxd7 {[%emt 0:00:05]} 18. O-O-O {[%emt 0:00:
00]} Kc6 {[%emt 0:00:08]} 19. Rd2 {[%emt 0:13:33]} Be7 {[%emt 0:00:48]} 20.
Rhd1 {[%emt 0:10:15]} Rhd8 {[%emt 0:01:06]} 21. c3 {[%emt 0:04:47]} Bf6 $1 {
[%emt 0:03:53]} 22. Rd3 {[%emt 0:05:15]} bxc3 {[%emt 0:10:37]} 23. bxc3 {
[%emt 0:00:03]} Rac8 {[%emt 0:00:58]} (23... Rab8 $15) 24. Nb2 $11 {[%emt 0:00:
00]} a5 {[%emt 0:03:18][%cal Ya5a4]} 25. Kc2 {[%emt 0:01:11]} a4 {[%emt 0:00:
00]} 26. Nxa4 {[%emt 0:02:57]} (26. Rb1 $11) 26... Ra8 $17 {[%emt 0:00:38]} 27.
Nb2 {[%emt 0:00:06]} ({Don't go for} 27. Nb6 $2 Rxa2+ 28. Kb1 Ra5 $19) 27...
Rxa2 {[%emt 0:00:16] White must now prevent ...Rb8.} 28. Kb1 {[%emt 0:01:59]}
Ra3 {[%emt 0:04:29]} 29. Bd4 {[%emt 0:00:48]} Nxd4 {[%emt 0:02:05]} 30. cxd4 {
[%emt 0:00:01]} Rxd3 {[%emt 0:00:40]} 31. Rxd3 {[%emt 0:01:09] Endgame KRB-KRN}
Re8 {[%emt 0:00:05]} 32. Kc2 {[%emt 0:00:32]} (32. Kc1 $17 {keeps fighting.})
32... Re2+ $19 {[%emt 0:00:16] Black is clearly better.} 33. Rd2 {[%emt 0:00:
02]} Rxd2+ {[%emt 0:00:08]} 34. Kxd2 {[%emt 0:00:01]} Bxd4 {[%emt 0:00:09]
KB-KN} 35. Nd3 {[%emt 0:00:01]} Kb5 {[%emt 0:02:07]} 36. Ke2 {[%emt 0:00:17]}
Kc4 {[%emt 0:00:22]} 37. h3 {[%emt 0:01:17]} Bf6 {[%emt 0:00:00]} 38. Ne1 {
[%emt 0:00:22]} Bc3 {[%emt 0:01:15] [#] And now ...Bxe1 would win.} 39. Nd3 {
[%emt 0:00:04]} Kd4 {[%emt 0:00:17]} 40. Nc1 {[%emt 0:01:01]} Bb4 {[%emt 0:02:
31]} 41. Nd3 {[%emt 0:31:25]} Bd6 {[%emt 0:30:06]} 42. Ne1 {[%emt 0:00:00]} Ke4
{[%emt 0:00:00]} 43. Nd3 {[%emt 0:00:00]} f5 {[%emt 0:00:00]} 44. Nc1 {[%emt 0:
00:00]} g5 {[%emt 0:00:00]} 45. Nd3 {[%emt 0:00:00]} h5 {[%emt 0:00:00]
Weighted Error Value: White=0.11 (very precise) /Black=0.06 (flawless)} 1/2-1/2